[Event "Titled Tuesday Blitz May 16 Early 2023"]
[White "Sebag, Marie"]
[Black "Przybylski, Wojciech"]
[WhiteFideId "617822"]
[BlackFideId "1117599"]
[WhiteElo "2431"]
[BlackElo "2222"]
[Result "1/2-1/2"]
[Round "10"]
[TimeControl "180+2"]
[Date "2023.05.16"]
[WhiteClock "0:00:03"]
[BlackClock "0:00:04"]

1. c4 {[%clk 0:02:54]}  e5 {[%clk 0:02:59]} 2. Nc3 {[%clk 0:02:53]}  Nf6 {[%clk 0:02:59]} 3. g3 {[%clk 0:02:53]}  Bb4 {[%clk 0:02:58]} 4. Bg2 {[%clk 0:02:52]}  O-O {[%clk 0:02:57]} 5. Nf3 {[%clk 0:02:51]}  d6 {[%clk 0:02:57]} 6. O-O {[%clk 0:02:51]}  c6 {[%clk 0:02:57]} 7. d3 {[%clk 0:02:50]}  Re8 {[%clk 0:02:57]} 8. Bg5 {[%clk 0:02:45]}  h6 {[%clk 0:02:57]} 9. Bxf6 {[%clk 0:02:45]}  Qxf6 {[%clk 0:02:57]} 10. Ne4 {[%clk 0:02:45]}  Qe7 {[%clk 0:02:56]} 11. a3 {[%clk 0:02:45]}  Ba5 {[%clk 0:02:56]} 12. b4 {[%clk 0:02:43]}  Bc7 {[%clk 0:02:55]} 13. Nc3 {[%clk 0:02:39]}  Nd7 {[%clk 0:02:53]} 14. Rb1 {[%clk 0:02:37]}  f5 {[%clk 0:02:51]} 15. Nd2 {[%clk 0:02:34]}  Nf6 {[%clk 0:02:49]} 16. b5 {[%clk 0:02:34]}  Bd7 {[%clk 0:02:46]} 17. bxc6 {[%clk 0:02:33]}  bxc6 {[%clk 0:02:43]} 18. Qa4 {[%clk 0:02:23]}  d5 {[%clk 0:02:34]} 19. cxd5 {[%clk 0:02:08]}  cxd5 {[%clk 0:02:33]} 20. Qb3 {[%clk 0:02:07]}  Rab8 {[%clk 0:02:01]} 21. Nxd5 {[%clk 0:02:05]}  Nxd5 {[%clk 0:02:01]} 22. Qxd5+ {[%clk 0:02:01]}  Be6 {[%clk 0:01:59]} 23. Qc6 {[%clk 0:01:57]}  Kh7 {[%clk 0:01:43]} 24. Rb7 {[%clk 0:01:42]}  Rxb7 {[%clk 0:01:39]} 25. Qxb7 {[%clk 0:01:42]}  Bd6 {[%clk 0:01:37]} 26. Qb5 {[%clk 0:01:28]}  Rb8 {[%clk 0:01:18]} 27. Qa5 {[%clk 0:01:26]}  Bc5 {[%clk 0:00:45]} 28. h4 {[%clk 0:01:13]}  Rb2 {[%clk 0:00:41]} 29. e3 {[%clk 0:00:47]}  Bxa3 {[%clk 0:00:39]} 30. Nc4 {[%clk 0:00:33]}  Bxc4 {[%clk 0:00:38]} 31. dxc4 {[%clk 0:00:33]}  Qc5 {[%clk 0:00:33]} 32. Qd8 {[%clk 0:00:29]}  Qxc4 {[%clk 0:00:30]} 33. Bd5 {[%clk 0:00:28]}  Rb8 {[%clk 0:00:17]} 34. Qxb8 {[%clk 0:00:15]}  Qxd5 {[%clk 0:00:16]} 35. Qxa7 {[%clk 0:00:15]}  Bd6 {[%clk 0:00:15]} 36. Qa1 {[%clk 0:00:15]}  f4 {[%clk 0:00:08]} 37. Qd1 {[%clk 0:00:14]}  Qe6 {[%clk 0:00:04]} 38. exf4 {[%clk 0:00:14]}  exf4 {[%clk 0:00:04]} 39. Re1 {[%clk 0:00:15]}  Qf6 {[%clk 0:00:03]} 40. Qd3+ {[%clk 0:00:14]}  Kg8 {[%clk 0:00:01]} 41. Qd5+ {[%clk 0:00:11]}  Kh7 {[%clk 0:00:02]} 42. Qe4+ {[%clk 0:00:11]}  Kh8 {[%clk 0:00:02]} 43. Qe8+ {[%clk 0:00:11]}  Kh7 {[%clk 0:00:02]} 44. Qe4+ {[%clk 0:00:11]}  Kh8 {[%clk 0:00:02]} 45. Kg2 {[%clk 0:00:11]}  fxg3 {[%clk 0:00:02]} 46. fxg3 {[%clk 0:00:11]}  Qb2+ {[%clk 0:00:02]} 47. Re2 {[%clk 0:00:11]}  Qf6 {[%clk 0:00:02]} 48. Qe6 {[%clk 0:00:10]}  Qd4 {[%clk 0:00:01]} 49. Qe8+ {[%clk 0:00:09]}  Kh7 {[%clk 0:00:02]} 50. Qe4+ {[%clk 0:00:09]}  Qxe4+ {[%clk 0:00:02]} 51. Rxe4 {[%clk 0:00:10]}  Bc5 {[%clk 0:00:02]} 52. Re6 {[%clk 0:00:10]}  Bd4 {[%clk 0:00:03]} 53. Kf3 {[%clk 0:00:10]}  Bc3 {[%clk 0:00:03]} 54. h5 {[%clk 0:00:10]}  Bd4 {[%clk 0:00:03]} 55. Ke4 {[%clk 0:00:10]}  Bf2 {[%clk 0:00:03]} 56. Kf3 {[%clk 0:00:09]}  Bd4 {[%clk 0:00:03]} 57. Kg4 {[%clk 0:00:07]}  Bc3 {[%clk 0:00:03]} 58. Kf5 {[%clk 0:00:07]}  Bd4 {[%clk 0:00:03]} 59. g4 {[%clk 0:00:07]}  Bc3 {[%clk 0:00:03]} 60. g5 {[%clk 0:00:05]}  hxg5 {[%clk 0:00:03]} 61. Kxg5 {[%clk 0:00:06]}  Bb2 {[%clk 0:00:03]} 62. Rc6 {[%clk 0:00:04]}  Bd4 {[%clk 0:00:03]} 63. Rc7 {[%clk 0:00:03]}  Be3+ {[%clk 0:00:02]} 64. Kg4 {[%clk 0:00:03]}  Bd2 {[%clk 0:00:02]} 65. Rd7 {[%clk 0:00:03]}  Be3 {[%clk 0:00:03]} 66. Re7 {[%clk 0:00:02]}  Bd2 {[%clk 0:00:03]} 67. Re6 {[%clk 0:00:02]}  Bc1 {[%clk 0:00:03]} 68. Rg6 {[%clk 0:00:02]}  Bd2 {[%clk 0:00:03]} 69. Kf5 {[%clk 0:00:02]}  Bc3 {[%clk 0:00:03]} 70. Ke6 {[%clk 0:00:02]}  Bf6 {[%clk 0:00:02]} 71. Kf7 {[%clk 0:00:01]}  Bd4 {[%clk 0:00:03]} 72. Rg4 {[%clk 0:00:02]}  Bc3 {[%clk 0:00:03]} 73. Rg6 {[%clk 0:00:02]}  Bd4 {[%clk 0:00:03]} 74. Rg4 {[%clk 0:00:02]}  Bc3 {[%clk 0:00:03]} 75. Rg2 {[%clk 0:00:03]}  Be5 {[%clk 0:00:04]} 76. Rc2 {[%clk 0:00:03]}  Bd4 {[%clk 0:00:04]} 77. Re2 {[%clk 0:00:04]}  Bc3 {[%clk 0:00:04]} 78. Re4 {[%clk 0:00:04]}  Bb2 {[%clk 0:00:04]} 79. Rc4 {[%clk 0:00:04]}  Ba1 {[%clk 0:00:04]} 80. Ra4 {[%clk 0:00:04]}  Bc3 {[%clk 0:00:04]} 81. Ra6 {[%clk 0:00:04]}  Bb2 {[%clk 0:00:04]} 82. Rc6 {[%clk 0:00:04]}  Bd4 {[%clk 0:00:04]} 83. Rd6 {[%clk 0:00:04]}  Bb2 {[%clk 0:00:04]} 84. Re6 {[%clk 0:00:04]}  Bc3 {[%clk 0:00:04]} 85. Re3 {[%clk 0:00:03]}  Bd4 {[%clk 0:00:04]} 86. Rg3 {[%clk 0:00:03]}  Be5 {[%clk 0:00:04]} 87. Rg4 {[%clk 0:00:03]}  Bc3 {[%clk 0:00:04]} 1/2-1/2


[Site "https://www.chess.com"]

[Event "Titled Tuesday Blitz May 16 Early 2023"]
[White "Gheorghiu, Calin"]
[Black "Zavortink, Matt"]
[WhiteFideId "1200305"]
[BlackFideId "2034263"]
[WhiteElo "2223"]
[BlackElo "2458"]
[Result "1/2-1/2"]
[Round "10"]
[TimeControl "180+2"]
[Date "2023.05.16"]
[WhiteClock "0:00:05"]
[BlackClock "0:00:22"]

1. e4 {[%clk 0:03:00]}  e6 {[%clk 0:02:59]} 2. d4 {[%clk 0:03:00]}  d5 {[%clk 0:02:59]} 3. Nc3 {[%clk 0:03:00]}  Nf6 {[%clk 0:02:59]} 4. e5 {[%clk 0:03:00]}  Nfd7 {[%clk 0:02:59]} 5. f4 {[%clk 0:03:01]}  c5 {[%clk 0:02:59]} 6. Nf3 {[%clk 0:03:01]}  Nc6 {[%clk 0:03:00]} 7. Be3 {[%clk 0:03:02]}  cxd4 {[%clk 0:02:59]} 8. Nxd4 {[%clk 0:03:02]}  Qb6 {[%clk 0:02:59]} 9. Qd2 {[%clk 0:02:31]}  Qxb2 {[%clk 0:02:59]} 10. Rb1 {[%clk 0:02:32]}  Qa3 {[%clk 0:02:59]} 11. Bb5 {[%clk 0:02:24]}  Nxd4 {[%clk 0:02:58]} 12. Bxd4 {[%clk 0:02:22]}  a6 {[%clk 0:02:58]} 13. Bxd7+ {[%clk 0:02:21]}  Bxd7 {[%clk 0:02:59]} 14. Rxb7 {[%clk 0:02:21]}  Bb4 {[%clk 0:02:39]} 15. O-O {[%clk 0:02:04]}  Bc8 {[%clk 0:02:39]} 16. Rc7 {[%clk 0:01:49]}  Qa5 {[%clk 0:02:30]} 17. a3 {[%clk 0:01:16]}  Qxc7 {[%clk 0:02:19]} 18. axb4 {[%clk 0:01:16]}  O-O {[%clk 0:02:17]} 19. f5 {[%clk 0:01:16]}  exf5 {[%clk 0:02:05]} 20. Nxd5 {[%clk 0:01:16]}  Qb7 {[%clk 0:01:54]} 21. Bc5 {[%clk 0:01:00]}  Be6 {[%clk 0:01:29]} 22. Bxf8 {[%clk 0:00:35]}  Qxd5 {[%clk 0:01:12]} 23. Qxd5 {[%clk 0:00:33]}  Bxd5 {[%clk 0:01:13]} 24. Bc5 {[%clk 0:00:28]}  Be4 {[%clk 0:00:59]} 25. c3 {[%clk 0:00:24]}  a5 {[%clk 0:00:56]} 26. b5 {[%clk 0:00:15]}  Bd3 {[%clk 0:00:55]} 27. Rf3 {[%clk 0:00:10]}  Bxb5 {[%clk 0:00:54]} 28. Rxf5 {[%clk 0:00:10]}  a4 {[%clk 0:00:50]} 29. Ba3 {[%clk 0:00:10]}  Rd8 {[%clk 0:00:46]} 30. h3 {[%clk 0:00:07]}  Rd1+ {[%clk 0:00:43]} 31. Kh2 {[%clk 0:00:08]}  g6 {[%clk 0:00:43]} 32. Rf3 {[%clk 0:00:06]}  Rd3 {[%clk 0:00:34]} 33. Rxd3 {[%clk 0:00:05]}  Bxd3 {[%clk 0:00:35]} 34. Kg3 {[%clk 0:00:05]}  Kg7 {[%clk 0:00:34]} 35. Kf4 {[%clk 0:00:06]}  f6 {[%clk 0:00:32]} 36. exf6+ {[%clk 0:00:05]}  Kxf6 {[%clk 0:00:33]} 37. g4 {[%clk 0:00:05]}  g5+ {[%clk 0:00:30]} 38. Kg3 {[%clk 0:00:05]}  h6 {[%clk 0:00:27]} 39. h4 {[%clk 0:00:05]}  gxh4+ {[%clk 0:00:25]} 40. Kxh4 {[%clk 0:00:05]}  Kg6 {[%clk 0:00:26]} 41. Bc5 {[%clk 0:00:05]}  Bc4 {[%clk 0:00:24]} 42. Bb4 {[%clk 0:00:05]}  Bb3 {[%clk 0:00:24]} 43. Bc5 {[%clk 0:00:05]}  Bc4 {[%clk 0:00:25]} 44. Bb4 {[%clk 0:00:06]}  Kf6 {[%clk 0:00:24]} 45. Bc5 {[%clk 0:00:06]}  Ke6 {[%clk 0:00:22]} 46. Kh5 {[%clk 0:00:06]}  Be2 {[%clk 0:00:23]} 47. Kxh6 {[%clk 0:00:05]}  Bxg4 {[%clk 0:00:23]} 48. Bb4 {[%clk 0:00:05]}  Kd5 {[%clk 0:00:23]} 49. Kg5 {[%clk 0:00:06]}  Be2 {[%clk 0:00:23]} 50. Kf4 {[%clk 0:00:06]}  Kc4 {[%clk 0:00:23]} 51. Ke3 {[%clk 0:00:06]}  Bd1 {[%clk 0:00:22]} 52. Kd2 {[%clk 0:00:06]}  Bh5 {[%clk 0:00:22]} 53. Kc1 {[%clk 0:00:05]}  Bg6 {[%clk 0:00:22]} 1/2-1/2


[Site "https://www.chess.com"]

[Event "Titled Tuesday Blitz May 16 Early 2023"]
[White "Avazkhonov, Alikhon"]
[Black "Bodnaruk, Anastasia"]
[WhiteFideId "14208504"]
[BlackFideId "4181751"]
[WhiteElo "1739"]
[BlackElo "2304"]
[Result "0-1"]
[Round "10"]
[TimeControl "180+2"]
[Date "2023.05.16"]
[WhiteClock "0:00:00"]
[BlackClock "0:00:15"]

1. e4 {[%clk 0:03:00]}  c5 {[%clk 0:02:57]} 2. Nf3 {[%clk 0:03:01]}  d6 {[%clk 0:02:57]} 3. d4 {[%clk 0:03:01]}  cxd4 {[%clk 0:02:57]} 4. Nxd4 {[%clk 0:03:02]}  Nf6 {[%clk 0:02:58]} 5. Nc3 {[%clk 0:03:03]}  a6 {[%clk 0:02:58]} 6. Bg5 {[%clk 0:03:03]}  Nbd7 {[%clk 0:02:58]} 7. Bc4 {[%clk 0:03:02]}  Qb6 {[%clk 0:02:54]} 8. a3 {[%clk 0:02:41]}  Qc5 {[%clk 0:02:52]} 9. Bd5 {[%clk 0:01:51]}  e6 {[%clk 0:02:47]} 10. Bxf6 {[%clk 0:01:16]}  Nxf6 {[%clk 0:02:43]} 11. Bb3 {[%clk 0:01:16]}  Be7 {[%clk 0:02:41]} 12. Qd2 {[%clk 0:01:15]}  O-O {[%clk 0:02:40]} 13. O-O-O {[%clk 0:01:15]}  b5 {[%clk 0:02:28]} 14. f3 {[%clk 0:01:11]}  Bd7 {[%clk 0:02:26]} 15. g4 {[%clk 0:01:09]}  a5 {[%clk 0:02:26]} 16. g5 {[%clk 0:01:01]}  Nh5 {[%clk 0:02:24]} 17. Rhg1 {[%clk 0:00:53]}  a4 {[%clk 0:02:19]} 18. Ba2 {[%clk 0:00:49]}  b4 {[%clk 0:02:19]} 19. axb4 {[%clk 0:00:33]}  Qxb4 {[%clk 0:02:19]} 20. Nb1 {[%clk 0:00:12]}  Qb6 {[%clk 0:02:16]} 21. Na3 {[%clk 0:00:12]}  Rab8 {[%clk 0:02:12]} 22. Nc4 {[%clk 0:00:12]}  Qb7 {[%clk 0:02:09]} 23. c3 {[%clk 0:00:05]}  Rfc8 {[%clk 0:02:03]} 24. Ne2 {[%clk 0:00:02]}  Rc5 {[%clk 0:01:34]} 25. Qc2 {[%clk 0:00:02]}  d5 {[%clk 0:01:27]} 26. exd5 {[%clk 0:00:02]}  exd5 {[%clk 0:01:27]} 27. Ne5 {[%clk 0:00:02]}  Be6 {[%clk 0:01:13]} 28. Nd4 {[%clk 0:00:02]}  Bd6 {[%clk 0:00:59]} 29. Nxe6 {[%clk 0:00:02]}  fxe6 {[%clk 0:00:59]} 30. Nd3 {[%clk 0:00:03]}  Rb5 {[%clk 0:00:58]} 31. Rg4 {[%clk 0:00:03]}  a3 {[%clk 0:00:52]} 32. b4 {[%clk 0:00:03]}  Rc8 {[%clk 0:00:51]} 33. Kd2 {[%clk 0:00:02]}  Kh8 {[%clk 0:00:34]} 34. Rb1 {[%clk 0:00:02]}  Rf8 {[%clk 0:00:23]} 35. Ke2 {[%clk 0:00:02]}  d4 {[%clk 0:00:22]} 36. Ne1 {[%clk 0:00:02]}  Nf4+ {[%clk 0:00:19]} 37. Rxf4 {[%clk 0:00:02]}  Bxf4 {[%clk 0:00:19]} 38. c4 {[%clk 0:00:02]}  Rxg5 {[%clk 0:00:18]} 39. c5 {[%clk 0:00:02]}  Be3 {[%clk 0:00:15]} 40. c6 {[%clk 0:00:01]}  Qc7 {[%clk 0:00:16]} 41. b5 {[%clk 0:00:01]}  Qxh2+ {[%clk 0:00:15]} 42. Kd3 {[%clk 0:00:02]}  Qh3 {[%clk 0:00:15]} 43. c7 {[%clk 0:00:02]}  Qf5+ {[%clk 0:00:15]} 44. Ke2 {[%clk 0:00:00]}  Rg2+ {[%clk 0:00:15]} 0-1


[Site "https://www.chess.com"]

[Event "Titled Tuesday Blitz May 16 Early 2023"]
[White "liwadas82"]
[Black "Kvaloy, Aksel Bu"]
[BlackFideId "1528815"]
[WhiteElo "2452"]
[BlackElo "2242"]
[Result "0-1"]
[Round "10"]
[TimeControl "180+2"]
[Date "2023.05.16"]
[WhiteClock "0:00:00"]
[BlackClock "0:00:52"]

1. e4 {[%clk 0:03:00]}  e5 {[%clk 0:02:59]} 2. Nf3 {[%clk 0:03:01]}  Nf6 {[%clk 0:02:59]} 3. Bc4 {[%clk 0:03:00]}  Nc6 {[%clk 0:02:57]} 4. d3 {[%clk 0:02:59]}  h6 {[%clk 0:02:57]} 5. c3 {[%clk 0:02:57]}  d6 {[%clk 0:02:56]} 6. Nbd2 {[%clk 0:02:55]}  g6 {[%clk 0:02:55]} 7. b4 {[%clk 0:02:55]}  Bg7 {[%clk 0:02:52]} 8. O-O {[%clk 0:02:52]}  O-O {[%clk 0:02:51]} 9. a4 {[%clk 0:02:51]}  Kh8 {[%clk 0:02:49]} 10. a5 {[%clk 0:02:51]}  a6 {[%clk 0:02:49]} 11. h3 {[%clk 0:02:46]}  Nh7 {[%clk 0:02:48]} 12. Re1 {[%clk 0:02:37]}  f5 {[%clk 0:02:48]} 13. exf5 {[%clk 0:02:36]}  gxf5 {[%clk 0:02:47]} 14. Nf1 {[%clk 0:02:29]}  d5 {[%clk 0:02:46]} 15. Bb3 {[%clk 0:02:28]}  e4 {[%clk 0:02:46]} 16. dxe4 {[%clk 0:02:22]}  fxe4 {[%clk 0:02:46]} 17. Nd4 {[%clk 0:02:22]}  Nxd4 {[%clk 0:02:45]} 18. cxd4 {[%clk 0:02:21]}  c6 {[%clk 0:02:45]} 19. Be3 {[%clk 0:02:14]}  Qh4 {[%clk 0:02:32]} 20. Qd2 {[%clk 0:02:12]}  Ng5 {[%clk 0:02:32]} 21. Bxg5 {[%clk 0:01:59]}  hxg5 {[%clk 0:02:33]} 22. Nh2 {[%clk 0:01:59]}  Be6 {[%clk 0:02:23]} 23. Re3 {[%clk 0:01:57]}  Qf4 {[%clk 0:02:20]} 24. Bd1 {[%clk 0:01:45]}  Qf6 {[%clk 0:02:11]} 25. Rg3 {[%clk 0:01:45]}  Qxd4 {[%clk 0:02:10]} 26. Ra2 {[%clk 0:01:33]}  Qxd2 {[%clk 0:02:07]} 27. Rxd2 {[%clk 0:01:34]}  Be5 {[%clk 0:02:08]} 28. Rxg5 {[%clk 0:01:32]}  Bf4 {[%clk 0:02:08]} 29. Rh5+ {[%clk 0:01:31]}  Kg7 {[%clk 0:02:07]} 30. Rc2 {[%clk 0:01:25]}  Bd6 {[%clk 0:02:05]} 31. Rb2 {[%clk 0:01:19]}  Kg6 {[%clk 0:02:01]} 32. Bg4 {[%clk 0:01:10]}  Bxg4 {[%clk 0:01:56]} 33. hxg4 {[%clk 0:01:10]}  Rae8 {[%clk 0:01:51]} 34. Nf1 {[%clk 0:01:08]}  Re5 {[%clk 0:01:43]} 35. Rxe5 {[%clk 0:01:04]}  Bxe5 {[%clk 0:01:44]} 36. Re2 {[%clk 0:01:03]}  Kg5 {[%clk 0:01:42]} 37. Ne3 {[%clk 0:01:03]}  Bd4 {[%clk 0:01:42]} 38. Nf5 {[%clk 0:01:02]}  Be5 {[%clk 0:01:33]} 39. f3 {[%clk 0:01:00]}  Re8 {[%clk 0:01:26]} 40. Kf2 {[%clk 0:00:56]}  Bc3 {[%clk 0:01:25]} 41. fxe4 {[%clk 0:00:48]}  dxe4 {[%clk 0:01:20]} 42. Nd6 {[%clk 0:00:34]}  Bd4+ {[%clk 0:01:00]} 43. Ke1 {[%clk 0:00:30]}  Bc3+ {[%clk 0:01:00]} 44. Kf2 {[%clk 0:00:20]}  Rf8+ {[%clk 0:01:00]} 45. Kg1 {[%clk 0:00:07]}  Bd4+ {[%clk 0:00:56]} 46. Kh2 {[%clk 0:00:01]}  Be5+ {[%clk 0:00:55]} 47. g3 {[%clk 0:00:01]}  Bxd6 {[%clk 0:00:55]} 48. Rxe4 {[%clk 0:00:02]}  Rf2+ {[%clk 0:00:54]} 49. Kg1 {[%clk 0:00:02]}  Rb2 {[%clk 0:00:54]} 50. Rd4 {[%clk 0:00:01]}  Bxb4 {[%clk 0:00:52]} 51. Rd7 {[%clk 0:00:00]}  Kxg4 {[%clk 0:00:52]} 0-1


[Site "https://www.chess.com"]

[Event "Titled Tuesday Blitz May 16 Early 2023"]
[White "Bartel, Michal"]
[Black "Womacka, Mathias"]
[WhiteFideId "1119257"]
[BlackFideId "4611390"]
[WhiteElo "2282"]
[BlackElo "2377"]
[Result "0-1"]
[Round "10"]
[TimeControl "180+2"]
[Date "2023.05.16"]
[WhiteClock "0:00:30"]
[BlackClock "0:00:18"]

1. e4 {[%clk 0:03:00]}  c5 {[%clk 0:02:59]} 2. Ne2 {[%clk 0:02:59]}  Nc6 {[%clk 0:02:57]} 3. g3 {[%clk 0:03:00]}  e5 {[%clk 0:02:54]} 4. Bg2 {[%clk 0:02:59]}  g6 {[%clk 0:02:55]} 5. c3 {[%clk 0:02:57]}  Bg7 {[%clk 0:02:55]} 6. d3 {[%clk 0:02:58]}  Nge7 {[%clk 0:02:55]} 7. Be3 {[%clk 0:02:58]}  d6 {[%clk 0:02:53]} 8. Nd2 {[%clk 0:02:58]}  O-O {[%clk 0:02:53]} 9. f4 {[%clk 0:02:59]}  Be6 {[%clk 0:02:42]} 10. Nf3 {[%clk 0:02:57]}  Qd7 {[%clk 0:02:41]} 11. Ng5 {[%clk 0:02:55]}  Bg4 {[%clk 0:02:41]} 12. h3 {[%clk 0:02:56]}  Bxe2 {[%clk 0:02:40]} 13. Qxe2 {[%clk 0:02:57]}  exf4 {[%clk 0:02:34]} 14. Bxf4 {[%clk 0:02:52]}  d5 {[%clk 0:02:31]} 15. O-O {[%clk 0:02:44]}  d4 {[%clk 0:02:10]} 16. c4 {[%clk 0:02:41]}  Ne5 {[%clk 0:02:10]} 17. Rf2 {[%clk 0:02:30]}  N7c6 {[%clk 0:02:09]} 18. a3 {[%clk 0:02:23]}  a6 {[%clk 0:02:03]} 19. Raf1 {[%clk 0:02:22]}  b5 {[%clk 0:02:02]} 20. cxb5 {[%clk 0:02:23]}  axb5 {[%clk 0:02:02]} 21. Nf3 {[%clk 0:02:18]}  c4 {[%clk 0:01:56]} 22. Nxe5 {[%clk 0:02:17]}  Nxe5 {[%clk 0:01:51]} 23. dxc4 {[%clk 0:02:15]}  bxc4 {[%clk 0:01:45]} 24. Qd2 {[%clk 0:01:41]}  d3 {[%clk 0:01:24]} 25. Rc1 {[%clk 0:01:34]}  Rac8 {[%clk 0:01:22]} 26. Kh1 {[%clk 0:01:31]}  Rfd8 {[%clk 0:01:10]} 27. Qa5 {[%clk 0:01:26]}  Qd4 {[%clk 0:01:00]} 28. Rcf1 {[%clk 0:01:23]}  c3 {[%clk 0:00:48]} 29. bxc3 {[%clk 0:01:13]}  Qxc3 {[%clk 0:00:48]} 30. Qa7 {[%clk 0:01:04]}  d2 {[%clk 0:00:45]} 31. Bxe5 {[%clk 0:00:44]}  Bxe5 {[%clk 0:00:45]} 32. Qxf7+ {[%clk 0:00:42]}  Kh8 {[%clk 0:00:45]} 33. Bf3 {[%clk 0:00:32]}  d1=Q {[%clk 0:00:37]} 34. Rxd1 {[%clk 0:00:29]}  Rxd1+ {[%clk 0:00:36]} 35. Bxd1 {[%clk 0:00:30]}  Qe1+ {[%clk 0:00:35]} 36. Kg2 {[%clk 0:00:24]}  Qxd1 {[%clk 0:00:35]} 37. Qe7 {[%clk 0:00:25]}  Qd6 {[%clk 0:00:33]} 38. Qxd6 {[%clk 0:00:20]}  Bxd6 {[%clk 0:00:33]} 39. Rf3 {[%clk 0:00:20]}  Ra8 {[%clk 0:00:31]} 40. h4 {[%clk 0:00:19]}  Rxa3 {[%clk 0:00:31]} 41. Rf6 {[%clk 0:00:17]}  Bxg3 {[%clk 0:00:28]} 42. h5 {[%clk 0:00:17]}  Kg7 {[%clk 0:00:26]} 43. Rf3 {[%clk 0:00:16]}  Rxf3 {[%clk 0:00:24]} 44. Kxf3 {[%clk 0:00:16]}  Be5 {[%clk 0:00:25]} 45. Kg4 {[%clk 0:00:17]}  Kh6 {[%clk 0:00:24]} 46. Kh4 {[%clk 0:00:17]}  Bf6+ {[%clk 0:00:24]} 47. Kg4 {[%clk 0:00:17]}  Be7 {[%clk 0:00:24]} 48. e5 {[%clk 0:00:17]}  Kg7 {[%clk 0:00:22]} 49. Kf4 {[%clk 0:00:15]}  Kf7 {[%clk 0:00:22]} 50. Ke4 {[%clk 0:00:14]}  Ke6 {[%clk 0:00:22]} 51. Kf4 {[%clk 0:00:14]}  g5+ {[%clk 0:00:21]} 52. Kg4 {[%clk 0:00:15]}  Kxe5 {[%clk 0:00:21]} 53. h6 {[%clk 0:00:16]}  Ke4 {[%clk 0:00:21]} 54. Kh5 {[%clk 0:00:16]}  Ke5 {[%clk 0:00:19]} 55. Kg4 {[%clk 0:00:16]}  Kf6 {[%clk 0:00:20]} 56. Kh5 {[%clk 0:00:17]}  Kf7 {[%clk 0:00:20]} 57. Kg4 {[%clk 0:00:18]}  Kg6 {[%clk 0:00:21]} 58. Kh3 {[%clk 0:00:18]}  Kxh6 {[%clk 0:00:22]} 59. Kg4 {[%clk 0:00:19]}  Kg6 {[%clk 0:00:23]} 60. Kh3 {[%clk 0:00:20]}  h5 {[%clk 0:00:23]} 61. Kg2 {[%clk 0:00:21]}  Kf5 {[%clk 0:00:24]} 62. Kh1 {[%clk 0:00:22]}  g4 {[%clk 0:00:25]} 63. Kg2 {[%clk 0:00:23]}  Kf4 {[%clk 0:00:26]} 64. Kh1 {[%clk 0:00:23]}  h4 {[%clk 0:00:26]} 65. Kg2 {[%clk 0:00:24]}  Ke4 {[%clk 0:00:25]} 66. Kh1 {[%clk 0:00:25]}  Kf3 {[%clk 0:00:25]} 67. Kh2 {[%clk 0:00:26]}  g3+ {[%clk 0:00:24]} 68. Kh1 {[%clk 0:00:27]}  g2+ {[%clk 0:00:23]} 69. Kg1 {[%clk 0:00:28]}  Bc5+ {[%clk 0:00:21]} 70. Kh2 {[%clk 0:00:29]}  Bf8 {[%clk 0:00:20]} 71. Kh3 {[%clk 0:00:29]}  Kf2 {[%clk 0:00:20]} 72. Kxh4 {[%clk 0:00:29]}  g1=Q {[%clk 0:00:19]} 73. Kh5 {[%clk 0:00:30]}  Kf3 {[%clk 0:00:18]} 74. Kh4 {[%clk 0:00:30]}  Qg4# {[%clk 0:00:18]} 0-1


[Site "https://www.chess.com"]

[Event "Titled Tuesday Blitz May 16 Early 2023"]
[White "Seinw1"]
[Black "Bogaudinov, Rushan"]
[BlackFideId "4129288"]
[WhiteElo "2542"]
[BlackElo "1941"]
[Result "0-1"]
[Round "10"]
[TimeControl "180+2"]
[Date "2023.05.16"]
[WhiteClock "0:00:06"]
[BlackClock "0:00:08"]

1. e4 {[%clk 0:03:00]}  c5 {[%clk 0:02:59]} 2. Nf3 {[%clk 0:03:00]}  e6 {[%clk 0:02:59]} 3. d4 {[%clk 0:03:01]}  cxd4 {[%clk 0:02:58]} 4. Nxd4 {[%clk 0:02:59]}  Nf6 {[%clk 0:02:58]} 5. Nc3 {[%clk 0:02:58]}  Bb4 {[%clk 0:02:58]} 6. e5 {[%clk 0:02:52]}  Nd5 {[%clk 0:02:56]} 7. Qg4 {[%clk 0:02:47]}  Kf8 {[%clk 0:02:56]} 8. Bd2 {[%clk 0:02:45]}  h5 {[%clk 0:02:56]} 9. Qf3 {[%clk 0:02:35]}  Nxc3 {[%clk 0:02:45]} 10. Bxc3 {[%clk 0:02:32]}  Be7 {[%clk 0:02:44]} 11. O-O-O {[%clk 0:02:29]}  Nc6 {[%clk 0:02:39]} 12. Nb5 {[%clk 0:02:29]}  f5 {[%clk 0:01:33]} 13. exf6 {[%clk 0:02:06]}  gxf6 {[%clk 0:01:33]} 14. Nd6 {[%clk 0:01:55]}  Bxd6 {[%clk 0:01:17]} 15. Bxf6 {[%clk 0:01:39]}  Qc7 {[%clk 0:01:12]} 16. Be5+ {[%clk 0:01:07]}  Ke8 {[%clk 0:01:01]} 17. Bxd6 {[%clk 0:01:07]}  Qa5 {[%clk 0:00:58]} 18. Bd3 {[%clk 0:00:58]}  Qg5+ {[%clk 0:00:53]} 19. Kb1 {[%clk 0:00:54]}  b6 {[%clk 0:00:42]} 20. h4 {[%clk 0:00:49]}  Qg7 {[%clk 0:00:41]} 21. g4 {[%clk 0:00:35]}  hxg4 {[%clk 0:00:39]} 22. Qe3 {[%clk 0:00:33]}  Bb7 {[%clk 0:00:37]} 23. h5 {[%clk 0:00:29]}  Ne7 {[%clk 0:00:36]} 24. Rhg1 {[%clk 0:00:22]}  Rxh5 {[%clk 0:00:35]} 25. f3 {[%clk 0:00:17]}  Rg5 {[%clk 0:00:21]} 26. fxg4 {[%clk 0:00:16]}  Rxg4 {[%clk 0:00:22]} 27. Rxg4 {[%clk 0:00:16]}  Qxg4 {[%clk 0:00:23]} 28. Rg1 {[%clk 0:00:16]}  Nf5 {[%clk 0:00:17]} 29. Bxf5 {[%clk 0:00:14]}  Qxf5 {[%clk 0:00:16]} 30. Rg8+ {[%clk 0:00:12]}  Kf7 {[%clk 0:00:14]} 31. Rg1 {[%clk 0:00:11]}  Rg8 {[%clk 0:00:12]} 32. Re1 {[%clk 0:00:11]}  Rg2 {[%clk 0:00:11]} 33. Qc3 {[%clk 0:00:11]}  Be4 {[%clk 0:00:10]} 34. Rc1 {[%clk 0:00:09]}  Qd5 {[%clk 0:00:09]} 35. Bb4 {[%clk 0:00:08]}  a5 {[%clk 0:00:09]} 36. Ba3 {[%clk 0:00:08]}  Qc6 {[%clk 0:00:07]} 37. Qe3 {[%clk 0:00:06]}  b5 {[%clk 0:00:06]} 38. Qf4+ {[%clk 0:00:06]}  Bf5 {[%clk 0:00:04]} 39. Ka1 {[%clk 0:00:05]}  b4 {[%clk 0:00:04]} 40. Qh6 {[%clk 0:00:03]}  bxa3 {[%clk 0:00:04]} 41. Qh5+ {[%clk 0:00:03]}  Ke7 {[%clk 0:00:03]} 42. Qh4+ {[%clk 0:00:03]}  Kf7 {[%clk 0:00:02]} 43. Qd4 {[%clk 0:00:03]}  axb2+ {[%clk 0:00:02]} 44. Kxb2 {[%clk 0:00:04]}  Qd5 {[%clk 0:00:02]} 45. Qxd5 {[%clk 0:00:04]}  exd5 {[%clk 0:00:02]} 46. Kc3 {[%clk 0:00:05]}  Be4 {[%clk 0:00:03]} 47. Kd4 {[%clk 0:00:05]}  Ke6 {[%clk 0:00:04]} 48. Rf1 {[%clk 0:00:06]}  Rd2+ {[%clk 0:00:04]} 49. Kc5 {[%clk 0:00:05]}  Rxc2+ {[%clk 0:00:04]} 50. Kb6 {[%clk 0:00:06]}  Ke5 {[%clk 0:00:05]} 51. Kxa5 {[%clk 0:00:06]}  Rxa2+ {[%clk 0:00:05]} 52. Kb6 {[%clk 0:00:07]}  Rc2 {[%clk 0:00:06]} 53. Rf8 {[%clk 0:00:06]}  Rc6+ {[%clk 0:00:06]} 54. Kb7 {[%clk 0:00:05]}  d4 {[%clk 0:00:06]} 55. Kb8 {[%clk 0:00:06]}  d3 {[%clk 0:00:06]} 56. Re8+ {[%clk 0:00:07]}  Re6 {[%clk 0:00:06]} 57. Rf8 {[%clk 0:00:07]}  d5 {[%clk 0:00:07]} 58. Rf1 {[%clk 0:00:07]}  Kd4 {[%clk 0:00:07]} 59. Re1 {[%clk 0:00:07]}  d2 {[%clk 0:00:07]} 60. Rd1 {[%clk 0:00:08]}  Ke3 {[%clk 0:00:08]} 61. Kc7 {[%clk 0:00:06]}  Ke2 {[%clk 0:00:08]} 0-1


[Site "https://www.chess.com"]